{"text_format":"3","workbook":"xlsx","n_sheets":2,"sheets":["เริ่ม","ตัววางแผนงบประมาณวันหยุดพักผ่อน"],"not_rendered":{"defined_names":1},"read":"whole","date_system":"1900"}

{"sheet":"เริ่ม","index":0,"n_rows":4,"n_cols":2,"rows_kept":4}
[null,"วิธีใช้เทมเพลตนี้"]
[null,"ติดตามค่าใช้จ่ายของคุณด้วยตัววางแผนงบประมาณในวันหยุดนี้"]
[null,"เมื่อต้องการเริ่มต้น ให้ใส่งบประมาณ และ ค่าใช้จ่ายจริงในตารางแต่ละประเภท"]
[null,"งบประมาณในวันหยุด จํานวนเงินที่ใช้จริง และ ผลต่างจะถูกคํานวณโดยอัตโนมัติให้คุณ"]

{"sheet":"ตัววางแผนงบประมาณวันหยุดพักผ่อน","index":1,"n_rows":36,"n_cols":14,"rows_kept":36,"merged":[[0,2,5,7],[2,10,2,11],[8,2,8,5],[8,10,8,13],[18,2,18,5],[18,10,18,13],[29,2,29,5],[29,10,29,13]]}
[null,null,"ตัววางแผนงบประมาณวันหยุดพักผ่อน"]
[]
[{"$nulls":10},"งบประมาณในวันหยุด",null,null,{"$f":"SUM(ของขวัญ[งบประมาณ],บรรจุภัณฑ์[งบประมาณ],(การเดินทาง[งบประมาณ],(มื้ออาหาร[งบประมาณ],(ความบันเทิง[งบประมาณ],เบ็ดเตล็ด[งบประมาณ]))))","v":{"v":750,"d":"฿750.00"}}]
[{"$nulls":10},"ค่าใช้จ่ายตามจริง",null,null,{"$f":"SUM((ของขวัญ[ตามที่เป็นจริง],(บรรจุภัณฑ์[ค่าใช้จ่ายจริง],(การเดินทาง[ค่าใช้จ่ายจริง],(มื้ออาหาร[ตามที่เป็นจริง],(ความบันเทิง[ค่าใช้จ่ายจริง],(เบ็ดเตล็ด[ค่าใช้จ่ายจริง])))))))","v":{"v":820,"d":"฿820.00"}}]
[]
[{"$nulls":10},"ผลต่าง (สูงกว่า/ต่ำกว่างบประมาณ)",null,null,{"$f":"SUM(N3-N4)","v":{"v":-70,"d":"-฿70.00"}}]
[]
[]
[null,null,"ของขวัญ",{"$nulls":7},"มื้ออาหารในวันหยุด"]
[null,null,"รายการ","งบประมาณ","ตามที่เป็นจริง","ผลต่าง",{"$nulls":4},"รายการ","งบประมาณ","ตามที่เป็นจริง","ผลต่าง"]
[null,null,"ครอบครัว",{"v":500,"d":"฿500.00"},{"v":495,"d":"฿495.00"},{"$f":"ของขวัญ[[#This Row],[งบประมาณ]]-ของขวัญ[[#This Row],[ตามที่เป็นจริง]]","v":{"v":5,"d":"฿5.00"}},{"$nulls":4},"ของชำ",null,null,{"$f":"มื้ออาหาร[[#This Row],[งบประมาณ]]-มื้ออาหาร[[#This Row],[ตามที่เป็นจริง]]","v":{"v":0,"d":"฿0.00"}}]
[null,null,"เพื่อน",{"v":250,"d":"฿250.00"},{"v":325,"d":"฿325.00"},{"$f":"ของขวัญ[[#This Row],[งบประมาณ]]-ของขวัญ[[#This Row],[ตามที่เป็นจริง]]","v":{"v":-75,"d":"-฿75.00"}},{"$nulls":4},"การกรวดน้ำ",null,null,{"$f":"มื้ออาหาร[[#This Row],[งบประมาณ]]-มื้ออาหาร[[#This Row],[ตามที่เป็นจริง]]","v":{"v":0,"d":"฿0.00"}}]
[null,null,"เพื่อนร่วมงาน",null,null,{"$f":"ของขวัญ[[#This Row],[งบประมาณ]]-ของขวัญ[[#This Row],[ตามที่เป็นจริง]]","v":{"v":0,"d":"฿0.00"}},{"$nulls":4},"การตกแต่ง",null,null,{"$f":"มื้ออาหาร[[#This Row],[งบประมาณ]]-มื้ออาหาร[[#This Row],[ตามที่เป็นจริง]]","v":{"v":0,"d":"฿0.00"}}]
[null,null,"ครู คนเลี้ยงเด็ก พี่เลี้ยงเด็ก เป็นต้น",null,null,{"$f":"ของขวัญ[[#This Row],[งบประมาณ]]-ของขวัญ[[#This Row],[ตามที่เป็นจริง]]","v":{"v":0,"d":"฿0.00"}},{"$nulls":4},"อื่นๆ (แตะคอลัมน์สุดท้ายของแถวนี้เพื่อเพิ่มแถว)",null,null,{"$f":"มื้ออาหาร[[#This Row],[งบประมาณ]]-มื้ออาหาร[[#This Row],[ตามที่เป็นจริง]]","v":{"v":0,"d":"฿0.00"}}]
[null,null,"การบริจาคเพื่อการกุศล",null,null,{"$f":"ของขวัญ[[#This Row],[งบประมาณ]]-ของขวัญ[[#This Row],[ตามที่เป็นจริง]]","v":{"v":0,"d":"฿0.00"}},{"$nulls":7},{"$f":"มื้ออาหาร[[#This Row],[งบประมาณ]]-มื้ออาหาร[[#This Row],[ตามที่เป็นจริง]]","v":{"v":0,"d":"฿0.00"}}]
[null,null,"อื่นๆ (แตะคอลัมน์สุดท้ายของแถวนี้เพื่อเพิ่มแถว)",null,null,{"$f":"ของขวัญ[[#This Row],[งบประมาณ]]-ของขวัญ[[#This Row],[ตามที่เป็นจริง]]","v":{"v":0,"d":"฿0.00"}}]
[null,null,"ผลรวม",{"$f":"SUBTOTAL(109,ของขวัญ[งบประมาณ])","v":{"v":750,"d":"฿750.00"}},{"$f":"SUBTOTAL(109,ของขวัญ[ตามที่เป็นจริง])","v":{"v":820,"d":"฿820.00"}},{"$f":"SUBTOTAL(109,ของขวัญ[ผลต่าง])","v":{"v":-70,"d":"-฿70.00"}},{"$nulls":4},"ผลรวม",{"$f":"SUBTOTAL(109,มื้ออาหาร[งบประมาณ])","v":{"v":0,"d":"฿0.00"}},{"$f":"SUBTOTAL(109,มื้ออาหาร[ตามที่เป็นจริง])","v":{"v":0,"d":"฿0.00"}},{"$f":"SUBTOTAL(109,มื้ออาหาร[ผลต่าง])","v":{"v":0,"d":"฿0.00"}}]
[]
[null,null,"บรรจุภัณฑ์",{"$nulls":7},"ความบันเทิง"]
[null,null,"รายการ","งบประมาณ","ค่าใช้จ่ายจริง","ผลต่าง",{"$nulls":4},"รายการ","งบประมาณ","ค่าใช้จ่ายจริง","ผลต่าง"]
[null,null,"ห่อของขวัญ",null,null,{"$f":"บรรจุภัณฑ์[[#This Row],[งบประมาณ]]-บรรจุภัณฑ์[[#This Row],[ค่าใช้จ่ายจริง]]","v":{"v":0,"d":"฿0.00"}},{"$nulls":4},"บริการช่วยเหลือในงานเลี้ยง (บาร์เทนเดอร์ ผู้ให้บริการจัดเลี้ยง พนักงานทำความสะอาด เป็นต้น)",null,null,{"$f":"ความบันเทิง[[#This Row],[งบประมาณ]]-ความบันเทิง[[#This Row],[ค่าใช้จ่ายจริง]]","v":{"v":0,"d":"฿0.00"}}]
[null,null,"แท็ก",null,null,{"$f":"บรรจุภัณฑ์[[#This Row],[งบประมาณ]]-บรรจุภัณฑ์[[#This Row],[ค่าใช้จ่ายจริง]]","v":{"v":0,"d":"฿0.00"}},{"$nulls":4},"การตกแต่ง",null,null,{"$f":"ความบันเทิง[[#This Row],[งบประมาณ]]-ความบันเทิง[[#This Row],[ค่าใช้จ่ายจริง]]","v":{"v":0,"d":"฿0.00"}}]
[null,null,"อุปกรณ์ต่างๆ (ริบบิ้น เทป เป็นต้น)",null,null,{"$f":"บรรจุภัณฑ์[[#This Row],[งบประมาณ]]-บรรจุภัณฑ์[[#This Row],[ค่าใช้จ่ายจริง]]","v":{"v":0,"d":"฿0.00"}},{"$nulls":4},"อาหารและเครื่องดื่ม",null,null,{"$f":"ความบันเทิง[[#This Row],[งบประมาณ]]-ความบันเทิง[[#This Row],[ค่าใช้จ่ายจริง]]","v":{"v":0,"d":"฿0.00"}}]
[null,null,"กล่อง",null,null,{"$f":"บรรจุภัณฑ์[[#This Row],[งบประมาณ]]-บรรจุภัณฑ์[[#This Row],[ค่าใช้จ่ายจริง]]","v":{"v":0,"d":"฿0.00"}},{"$nulls":4},"ค่าเสื้อผ้า",null,null,{"$f":"ความบันเทิง[[#This Row],[งบประมาณ]]-ความบันเทิง[[#This Row],[ค่าใช้จ่ายจริง]]","v":{"v":0,"d":"฿0.00"}}]
[null,null,"ค่าไปรษณีย์",null,null,{"$f":"บรรจุภัณฑ์[[#This Row],[งบประมาณ]]-บรรจุภัณฑ์[[#This Row],[ค่าใช้จ่ายจริง]]","v":{"v":0,"d":"฿0.00"}},{"$nulls":4},"ตั๋ว",null,null,{"$f":"ความบันเทิง[[#This Row],[งบประมาณ]]-ความบันเทิง[[#This Row],[ค่าใช้จ่ายจริง]]","v":{"v":0,"d":"฿0.00"}}]
[null,null,"อื่นๆ (แตะคอลัมน์สุดท้ายของแถวนี้เพื่อเพิ่มแถว)",null,null,{"$f":"บรรจุภัณฑ์[[#This Row],[งบประมาณ]]-บรรจุภัณฑ์[[#This Row],[ค่าใช้จ่ายจริง]]","v":{"v":0,"d":"฿0.00"}},{"$nulls":4},"ทานอาหารค่ำนอกบ้าน",null,null,{"$f":"ความบันเทิง[[#This Row],[งบประมาณ]]-ความบันเทิง[[#This Row],[ค่าใช้จ่ายจริง]]","v":{"v":0,"d":"฿0.00"}}]
[{"$nulls":10},"อื่นๆ (แตะคอลัมน์สุดท้ายของแถวนี้เพื่อเพิ่มแถว)",null,null,{"$f":"ความบันเทิง[[#This Row],[งบประมาณ]]-ความบันเทิง[[#This Row],[ค่าใช้จ่ายจริง]]","v":{"v":0,"d":"฿0.00"}}]
[null,null,"ผลรวม",{"$f":"SUBTOTAL(109,บรรจุภัณฑ์[งบประมาณ])","v":{"v":0,"d":"฿0.00"}},{"$f":"SUBTOTAL(109,บรรจุภัณฑ์[ค่าใช้จ่ายจริง])","v":{"v":0,"d":"฿0.00"}},{"$f":"SUBTOTAL(109,บรรจุภัณฑ์[ผลต่าง])","v":{"v":0,"d":"฿0.00"}},{"$nulls":4},"ผลรวม",{"$f":"SUBTOTAL(109,ความบันเทิง[งบประมาณ])","v":{"v":0,"d":"฿0.00"}},{"$f":"SUBTOTAL(109,ความบันเทิง[ค่าใช้จ่ายจริง])","v":{"v":0,"d":"฿0.00"}},{"$f":"SUBTOTAL(109,ความบันเทิง[ผลต่าง])","v":{"v":0,"d":"฿0.00"}}]
[]
[null,null,"การท่องเที่ยว",{"$nulls":7},"เบ็ดเตล็ด"]
[null,null,"รายการ","งบประมาณ","ค่าใช้จ่ายจริง","ผลต่าง",{"$nulls":4},"รายการ","งบประมาณ","ค่าใช้จ่ายจริง","ผลต่าง"]
[null,null,"ตั๋วเครื่องบิน",null,null,{"$f":"การเดินทาง[[#This Row],[งบประมาณ]]-การเดินทาง[[#This Row],[ค่าใช้จ่ายจริง]]","v":{"v":0,"d":"฿0.00"}},{"$nulls":4},"ภาพถ่ายวันหยุด",null,null,{"$f":"เบ็ดเตล็ด[[#This Row],[งบประมาณ]]-เบ็ดเตล็ด[[#This Row],[ค่าใช้จ่ายจริง]]","v":{"v":0,"d":"฿0.00"}}]
[null,null,"ที่พัก",null,null,{"$f":"การเดินทาง[[#This Row],[งบประมาณ]]-การเดินทาง[[#This Row],[ค่าใช้จ่ายจริง]]","v":{"v":0,"d":"฿0.00"}},{"$nulls":4},"แก๊ส ",null,null,{"$f":"เบ็ดเตล็ด[[#This Row],[งบประมาณ]]-เบ็ดเตล็ด[[#This Row],[ค่าใช้จ่ายจริง]]","v":{"v":0,"d":"฿0.00"}}]
[null,null,"การเดินทาง",null,null,{"$f":"การเดินทาง[[#This Row],[งบประมาณ]]-การเดินทาง[[#This Row],[ค่าใช้จ่ายจริง]]","v":{"v":0,"d":"฿0.00"}},{"$nulls":4},"อื่นๆ (แตะคอลัมน์สุดท้ายของแถวนี้เพื่อเพิ่มแถว)",null,null,{"$f":"เบ็ดเตล็ด[[#This Row],[งบประมาณ]]-เบ็ดเตล็ด[[#This Row],[ค่าใช้จ่ายจริง]]","v":{"v":0,"d":"฿0.00"}}]
[null,null,"อื่นๆ (แตะคอลัมน์สุดท้ายของแถวนี้เพื่อเพิ่มแถว)",null,null,{"$f":"การเดินทาง[[#This Row],[งบประมาณ]]-การเดินทาง[[#This Row],[ค่าใช้จ่ายจริง]]","v":{"v":0,"d":"฿0.00"}}]
[null,null,"ผลรวม",{"$f":"SUBTOTAL(109,การเดินทาง[งบประมาณ])","v":{"v":0,"d":"฿0.00"}},{"$f":"SUBTOTAL(109,การเดินทาง[ค่าใช้จ่ายจริง])","v":{"v":0,"d":"฿0.00"}},{"$f":"การเดินทาง[[#This Row],[งบประมาณ]]-การเดินทาง[[#This Row],[ค่าใช้จ่ายจริง]]","v":{"v":0,"d":"฿0.00"}},{"$nulls":4},"ผลรวม",{"$f":"SUBTOTAL(109,เบ็ดเตล็ด[งบประมาณ])","v":{"v":0,"d":"฿0.00"}},{"$f":"SUBTOTAL(109,เบ็ดเตล็ด[ค่าใช้จ่ายจริง])","v":{"v":0,"d":"฿0.00"}},{"$f":"SUBTOTAL(109,เบ็ดเตล็ด[ผลต่าง])","v":{"v":0,"d":"฿0.00"}}]